fUST/lending_fUST_20251011
["ID","MTS","AMOUNT","RATE_DAILY","PERIOD"]
[390839486,1760176845198,-500.0,0.00024657,9]
[390839487,1760176845226,-500.0,0.00024657,9]
[390839488,1760176845257,-500.0,0.00024657,9]
[390839489,1760176845287,-500.0,0.00024657,9]
[390839490,1760176845318,-500.0,0.00024657,9]
[390839491,1760176845348,-500.0,0.00024657,9]
[390839492,1760176845378,-500.0,0.00024657,9]
[390839493,1760176845410,-500.0,0.00024657,9]
[390839494,1760176845503,-500.0,0.00024657,9]
[390839495,1760176845531,-500.0,0.00024657,9]
[390839496,1760176845560,-500.0,0.00024657,9]
[390839497,1760176845589,-500.0,0.00024657,9]
[390839498,1760176845617,-222.04,0.00024657,9]
[390839499,1760176845644,-500.0,0.00024657,9]
[390839500,1760176845672,-500.0,0.00024657,9]
[390839501,1760176845699,-500.0,0.00024657,9]
[390839502,1760176845728,-500.0,0.00024657,9]
[390839503,1760176845756,-500.0,0.00024657,9]
[390839504,1760176845785,-55.93,0.00024657,9]
[390839505,1760176846148,-199.04366934,0.00024657,9]
[390839506,1760176846162,-245.02633066,0.00024657,9]
[390839507,1760176846173,-254.97366934,0.00024657,9]
[390839508,1760176846587,-245.02633066,0.00024657,9]
[390839509,1760176846617,-500.0,0.00024657,9]
[390839510,1760176846646,-500.0,0.00024657,9]
[390839511,1760176846676,-500.0,0.00024657,9]
[390839512,1760176846706,-500.0,0.00024657,9]
[390839513,1760176846735,-500.0,0.00024657,9]
[390839514,1760176846763,-500.0,0.00024657,9]
[390839515,1760176846792,-500.0,0.00024657,9]
[390839516,1760176846823,-500.0,0.00024657,9]
[390839517,1760176846852,-500.0,0.00024657,9]
[390839518,1760176846881,-9.95733868,0.00024657,9]
[390839519,1760176847027,-490.04266132,0.00024657,9]
[390839520,1760176847059,-500.0,0.00024657,9]
[390839521,1760176847086,-388.4407741,0.00024657,9]
[390839522,1760176847118,-500.0,0.00024657,9]
[390839523,1760176847273,-611.0,0.00024657,9]
[390839524,1760176847302,-448.98,0.00024657,9]
[390839525,1760176847328,-500.0,0.00024657,9]
[390839526,1760176847355,-500.0,0.00024657,9]
[390839527,1760176847381,-500.0,0.00024657,9]
[390839528,1760176847408,-500.0,0.00024657,9]
[390839529,1760176847520,-500.0,0.00024657,9]
[390839530,1760176847548,-500.0,0.00024657,9]
[390839531,1760176847574,-500.0,0.00024657,9]
[390839532,1760176847601,-500.0,0.00024657,9]
[390839533,1760176847627,-500.0,0.00024657,9]
[390839534,1760176847653,-500.0,0.00024657,9]
[390839535,1760176847680,-593.79653601,0.00024657,9]
[390839536,1760176847706,-500.0,0.00024657,9]
[390839537,1760176847733,-500.0,0.00024657,9]
[390839538,1760176847760,-312.41692798,0.00024657,9]
[390839539,1760176847820,-187.58307202,0.00024657,9]
[390839540,1760176847848,-500.0,0.00024657,9]
[390839541,1760176847876,-500.0,0.00024657,9]
[390839542,1760176847904,-500.0,0.00024657,9]
[390839543,1760176847931,-500.0,0.00024657,9]
[390839544,1760176847956,-500.0,0.00024657,9]
[390839545,1760176847983,-500.0,0.00024657,9]
[390839546,1760176848010,-500.0,0.00024657,9]
[390839547,1760176848039,-500.0,0.00024657,9]
[390839548,1760176848068,-500.0,0.00024657,9]
[390839549,1760176848095,-124.84385596,0.00024657,9]
[390839550,1760176848227,-375.15614404,0.00024657,9]
[390839551,1760176848255,-500.0,0.00024657,9]
[390839552,1760176848282,-500.0,0.00024657,9]
[390839553,1760176848310,-168.13,0.00024657,9]
[390839554,1760176848340,-500.0,0.00024657,9]
[390839555,1760176848367,-500.0,0.00024657,9]
[390839556,1760176848394,-500.0,0.00024657,9]
[390839557,1760176848422,-500.0,0.00024657,9]
[390839558,1760176848451,-500.0,0.00024657,7]
[390839559,1760176848477,-500.0,0.00024657,9]
[390839560,1760176848504,-413.43771192,0.00024657,9]
[390839561,1760176848586,-86.56228808,0.00024657,9]
[390839562,1760176848613,-500.0,0.00024657,9]
[390839563,1760176848640,-500.0,0.00024657,9]
[390839564,1760176848667,-185.72119657,0.00024657,9]
[390839565,1760176848700,-500.0,0.00024657,9]
[390839566,1760176848733,-500.0,0.00024657,9]
[390839567,1760176848761,-500.0,0.00024657,9]
[390839568,1760176848789,-500.0,0.00024657,9]
[390839569,1760176848817,-500.0,0.00024657,9]
[390839570,1760176848845,-573.33165219,0.00024657,9]
[390839571,1760176848871,-309.35,0.00024657,9]
[390839572,1760176848898,-190.07972632,0.00024657,9]
[390839573,1760176849721,-309.92027368,0.00024657,9]
[390839574,1760176849747,-363.46499311,0.00024657,9]
[390839575,1760176849774,-500.0,0.00024657,9]
[390839576,1760176849801,-500.0,0.00024657,9]
[390839577,1760176849829,-500.0,0.00024657,9]
[390839578,1760176849856,-500.0,0.00024657,9]
[390839579,1760176849885,-500.0,0.00024657,9]
[390839580,1760176849913,-500.0,0.00024657,9]
[390839581,1760176849939,-500.0,0.00024657,9]
[390839582,1760176849967,-500.0,0.00024657,9]
[390839583,1760176849993,-234.13946642,0.00024657,9]
[390839584,1760176850094,-184.96053358,0.00024657,9]
[390839585,1760176850122,-4630.08893284,0.00024657,2]
[390839586,1760176850248,-369.91106716,0.00024657,2]
[390839587,1760176850277,-500.0,0.00024657,9]
[390839588,1760176850306,-500.0,0.00024657,9]
[390839589,1760176850336,-500.0,0.00024657,9]
[390839590,1760176850364,-500.0,0.00024657,9]
[390839591,1760176850391,-500.0,0.00024657,9]
[390839592,1760176850426,-500.0,0.00024657,9]
[390839593,1760176850454,-500.0,0.00024657,9]
[390839594,1760176850482,-500.0,0.00024657,9]
[390839595,1760176850510,-500.0,0.00024657,9]
[390839596,1760176850677,-500.0,0.00024657,9]
[390839597,1760176850705,-500.0,0.00024657,9]
[390839598,1760176850734,-500.0,0.00024657,9]
[390839599,1760176850762,-500.0,0.00024657,9]
[390839600,1760176850795,-500.0,0.00024657,9]
[390839601,1760176850826,-500.0,0.00024657,9]
[390839602,1760176850855,-500.0,0.00024657,9]
[390839603,1760176850882,-500.0,0.00024657,9]
[390839604,1760176850909,-369.48618188,0.00024657,9]
[390839605,1760176850951,-500.0,0.00024657,9]
[390839606,1760176851062,-500.0,0.00024657,9]
[390839607,1760176851094,-500.0,0.00024657,9]
[390839608,1760176851126,-500.0,0.00024657,9]
[390839609,1760176851156,-500.0,0.00024657,9]
[390839610,1760176851185,-500.0,0.00024657,9]
[390839611,1760176851218,-500.0,0.00024657,9]
[390839612,1760176851246,-500.0,0.00024657,9]
[390839613,1760176851275,-500.0,0.00024657,9]
[390839614,1760176851302,-500.0,0.00024657,9]
[390839615,1760176851329,-500.0,0.00024657,9]
[390839616,1760176851380,-500.0,0.00024657,9]
[390839617,1760176851407,-500.0,0.00024657,9]
[390839618,1760176851435,-500.0,0.00024657,9]
[390839619,1760176851462,-500.0,0.00024657,9]
[390839620,1760176851490,-500.0,0.00024657,9]
[390839621,1760176851521,-500.0,0.00024657,9]
[390839622,1760176851547,-500.0,0.00024657,9]
[390839623,1760176851577,-523.4,0.00024657,9]
[390839624,1760176851606,-500.0,0.00024657,9]
[390839625,1760176851635,-453.21,0.00024657,9]
[390839626,1760176851680,-46.79,0.00024657,9]
[390839627,1760176851707,-195.84,0.00024657,9]
[390839628,1760176851736,-500.0,0.00024657,9]
[390839629,1760176851765,-500.0,0.00024657,9]
[390839630,1760176851793,-500.0,0.00024657,9]
[390839631,1760176851822,-500.0,0.00024657,9]
[390839632,1760176851850,-500.0,0.00024657,9]
[390839633,1760176851876,-500.0,0.00024657,9]
[390839634,1760176852011,-491.79999999,0.00024657,9]
[390839635,1760176852040,-500.0,0.00024657,9]
[390839636,1760176852069,-500.0,0.00024657,9]
[390839637,1760176852097,-31.15000002,0.00024657,9]
[390839638,1760176852833,-468.84999998,0.00024657,9]
[390839639,1760176852863,-500.0,0.00024657,9]
[390839640,1760176852891,-500.0,0.00024657,9]
[390839641,1760176852919,-500.0,0.00024657,9]
[390839642,1760176852947,-610.16,0.00024657,9]
[390839643,1760176852976,-500.0,0.00024657,9]
[390839644,1760176853005,-220.75,0.00024657,9]
[390839645,1760176853033,-500.0,0.00024657,9]
[390839646,1760176853064,-660.84,0.00024657,9]
[390839647,1760176853094,-500.0,0.00024657,9]
[390839648,1760176853207,-660.84,0.00024657,9]
[390839649,1760176853237,-660.84,0.00024657,9]
[390839650,1760176853267,-660.84,0.00024657,9]
[390839651,1760176853298,-660.84,0.00024657,9]
[390839652,1760176853335,-500.0,0.00024657,9]
[390839653,1760176853371,-500.0,0.00024657,9]
[390839654,1760176853403,-660.84,0.00024657,9]
[390839655,1760176853431,-547.24,0.00024657,9]
[390839656,1760176853617,-500.0,0.00024657,9]
[390839657,1760176853648,-660.84,0.00024657,9]
[390839658,1760176853676,-500.0,0.00024657,9]
[390839659,1760176853705,-660.84,0.00024657,9]
[390839660,1760176853735,-500.0,0.00024657,9]
[390839661,1760176853765,-660.84,0.00024657,9]
[390839662,1760176853794,-500.0,0.00024657,9]
[390839663,1760176853826,-660.84,0.00024657,9]
[390839664,1760176853855,-354.79,0.00024657,9]
[390839665,1760176854141,-660.84,0.00024657,9]
[390839666,1760176854170,-500.0,0.00024657,9]
[390839667,1760176854200,-660.84,0.00024657,9]
[390839668,1760176854230,-500.0,0.00024657,9]
[390839669,1760176854260,-660.84,0.00024657,9]
[390839670,1760176854288,-500.0,0.00024657,9]
[390839671,1760176854318,-500.0,0.00024657,9]
[390839672,1760176854347,-660.84,0.00024657,9]
[390839673,1760176854375,-213.29,0.00024657,9]
[390839674,1760176856127,-795.13,0.00024647,10]
[390839675,1760176856156,-160.0,0.00024657,2]
[390839676,1760176856185,-286.71,0.00024657,9]
[390839677,1760176856216,-660.84,0.00024657,9]
[390839678,1760176856244,-500.0,0.00024657,9]
[390839679,1760176856271,-502.38338405,0.00024657,9]
[390839680,1760176856301,-660.84,0.00024657,9]
[390839681,1760176856331,-500.0,0.00024657,9]
[390839682,1760176856360,-500.0,0.00024657,9]
[390839683,1760176856390,-207.3632319,0.00024657,9]
[390839684,1760176856551,-453.4767681,0.00024657,9]
[390839685,1760176856583,-500.0,0.00024657,9]
[390839686,1760176856614,-500.0,0.00024657,9]
[390839687,1760176856644,-660.84,0.00024657,9]
[390839688,1760176856672,-500.0,0.00024657,9]
[390839689,1760176856702,-2263.1764638,0.00024657,9]
[390839690,1760176857399,-136.39321688,0.00024657,9]
[390839691,1760176857417,-108.63031932,0.00024657,9]
[390839692,1760176857426,-391.36968068,0.00024657,9]
[390839693,1760176857459,-108.63031932,0.00024657,9]
[390839694,1760176857486,-500.0,0.00024657,9]
[390839695,1760176857514,-660.84,0.00024657,9]
[390839696,1760176857542,-2508.2,0.00024657,9]
[390839697,1760176857570,-500.0,0.00024657,9]
[390839698,1760176857598,-500.0,0.00024657,9]
[390839699,1760176857734,-660.84,0.00024657,9]
[390839700,1760176857763,-2508.2,0.00024657,9]
[390839701,1760176857792,-624.36742519,0.00024657,9]
[390839702,1760176857821,-660.84,0.00024657,9]
[390839703,1760176857886,-2508.2,0.00024657,9]
[390839704,1760176857912,-500.0,0.00024657,9]
[390839705,1760176857943,-660.84,0.00024657,9]
[390839706,1760176857971,-153.73,0.00024657,9]
[390839707,1760176858272,-130.09936136,0.00024657,9]
[390839708,1760176858290,-660.84,0.00024657,9]
[390839709,1760176858303,-1091.51514962,0.00024657,9]
[390839710,1760176858318,-472.01548902,0.00024657,9]
[390839711,1760176858328,-500.0,0.00024657,9]
[390839712,1760176858336,-660.84,0.00024657,9]
[390839713,1760176858346,-875.34451098,0.00024657,9]
[390839714,1760176858367,-500.0,0.00024657,9]
[390839715,1760176858380,-660.84,0.00024657,9]
[390839716,1760176858396,-472.01548902,0.00024657,9]
[390839717,1760176858405,-500.0,0.00024657,9]
[390839718,1760176858414,-661.07,0.00024657,9]
[390839719,1760176858422,-500.0,0.00024657,9]
[390839720,1760176858431,-375.11451098,0.00024657,9]
[390839721,1760176858770,-2133.08548902,0.00024657,9]
[390839722,1760176858798,-500.0,0.00024657,9]
[390839723,1760176858827,-500.0,0.00024657,9]
[390839724,1760176858856,-1225.63902196,0.00024657,9]
[390839725,1760176858918,-1282.56097804,0.00024657,9]
[390839726,1760176859032,-500.0,0.00024657,9]
[390839727,1760176859061,-500.0,0.00024657,9]
[390839728,1760176859088,-500.0,0.00024657,9]
[390839729,1760176859117,-2508.2,0.00024657,9]
[390839730,1760176859147,-500.0,0.00024657,9]
[390839731,1760176859175,-483.61,0.00024657,9]
[390839732,1760176859260,-16.39,0.00024657,9]
[390839733,1760176860608,-500.0,0.00024657,9]
[390839734,1760176860638,-2508.2,0.00024657,9]
[390839735,1760176860666,-500.0,0.00024657,9]
[390839736,1760176860694,-500.0,0.00024657,9]
[390839737,1760176860722,-500.0,0.00024657,9]
[390839738,1760176860815,-983.61,0.00024657,9]
[390839739,1760176860849,-1524.59,0.00024657,9]
[390839740,1760176860877,-500.0,0.00024657,9]
[390839741,1760176860905,-500.0,0.00024657,9]
[390839742,1760176860933,-500.98,0.00024657,9]
[390839743,1760176860962,-500.0,0.00024657,9]
[390839744,1760176860991,-440.67,0.00024657,9]
[390839745,1760176861089,-2067.53,0.00024657,9]
[390839746,1760176861127,-500.0,0.00024657,9]
[390839747,1760176861158,-500.0,0.00024657,9]
[390839748,1760176861187,-2508.2,0.00024657,9]
[390839749,1760176861216,-500.0,0.00024657,9]
[390839750,1760176861242,-500.0,0.00024657,9]
[390839751,1760176861340,-2508.2,0.00024657,9]
[390839752,1760176861368,-500.0,0.00024657,9]
[390839753,1760176861395,-500.0,0.00024657,9]
[390839754,1760176861423,-475.41,0.00024657,9]
[390839755,1760176861522,-8.2,0.00024657,9]
[390839756,1760176861540,-500.0,0.00024657,9]
[390839757,1760176861579,-1524.59,0.00024657,9]
[390839758,1760176861609,-500.0,0.00024657,9]
[390839759,1760176861636,-500.0,0.00024657,9]
[390839760,1760176861664,-500.0,0.00024657,9]
[390839761,1760176861692,-1442.63,0.00024657,9]
[390839762,1760176861756,-1065.57,0.00024657,9]
[390839763,1760176861783,-500.0,0.00024657,9]
[390839764,1760176861810,-500.0,0.00024657,9]
[390839765,1760176861838,-500.0,0.00024657,9]
[390839766,1760176861866,-460.05907798,0.00024657,9]
[390839767,1760176861894,-1440.55184404,0.00024657,9]
[390839768,1760176862046,-189.54907798,0.00024657,9]
[390839769,1760176862065,-500.0,0.00024657,9]
[390839770,1760176862078,-378.09907798,0.00024657,9]
[390839771,1760176862087,-121.90092202,0.00024657,9]
[390839772,1760176862101,-378.09907798,0.00024657,9]
[390839773,1760176862110,-121.90092202,0.00024657,9]
[390839774,1760176862123,-378.09907798,0.00024657,9]
[390839775,1760176862136,-81.96,0.00024657,9]
[390839776,1760176862150,-418.04,0.00024657,9]
[390839777,1760176862158,-2090.16,0.00024657,9]
[390839778,1760176862581,-418.04,0.00024657,9]
[390839779,1760176862609,-500.0,0.00024657,9]
[390839780,1760176862636,-500.0,0.00024657,9]
[390839781,1760176862663,-500.0,0.00024657,9]
[390839782,1760176862689,-252.72,0.00024657,9]
[390839783,1760176862718,-500.0,0.00024657,9]
[390839784,1760176862746,-2150.29,0.00024657,9]
[390839785,1760176862861,-357.91,0.00024657,9]
[390839786,1760176862887,-500.0,0.00024657,9]
[390839787,1760176862914,-2508.2,0.00024657,9]
[390839788,1760176862940,-500.0,0.00024657,9]
[390839789,1760176862966,-500.0,0.00024657,9]
[390839790,1760176863075,-1488.8093664,0.00024557,2]
[390839791,1760176863118,-2508.2,0.00024657,9]
[390839792,1760176863151,-500.0,0.00024657,9]
[390839793,1760176863179,-500.0,0.00024657,9]
[390839794,1760176863379,-300.0,0.00024656,2]
[390839795,1760176863408,-2508.2,0.00024657,9]
[390839796,1760176863436,-500.0,0.00024657,9]
[390839797,1760176863468,-875.41,0.00024657,9]
[390839798,1760176863572,-1632.79,0.00024657,9]
[390839799,1760176863602,-500.0,0.00024657,9]
[390839800,1760176863632,-195.55,0.00024657,9]
[390839801,1760176863659,-502.5979025,0.00024657,9]
[390839802,1760176863818,-1829.82648296,0.00024657,9]
[390839803,1760176863886,-678.48122908,0.00024657,9]
[390839804,1760176863914,-500.0,0.00024657,9]
[390839805,1760176863951,-500.0,0.00024657,9]
[390839806,1760176863988,-500.0,0.00024657,9]
[390839807,1760176864016,-500.0,0.00024657,9]
[390839808,1760176864044,-500.0,0.00024657,9]
[390839809,1760176864073,-500.0,0.00024657,9]
[390839810,1760176864100,-500.0,0.00024657,9]
[390839811,1760176864131,-500.0,0.00024657,9]
[390839812,1760176864160,-202.04,0.00024657,9]
[390839813,1760176864367,-300.59,0.00024657,9]
[390839814,1760176864395,-882.08,0.00024657,9]
[390839815,1760176864423,-500.0,0.00024657,9]
[390839816,1760176864452,-882.08,0.00024657,9]
[390839817,1760176864481,-240.72,0.00024657,9]
[390839818,1760176864508,-882.08,0.00024657,9]
[390839819,1760176864537,-882.08,0.00024657,9]
[390839820,1760176865025,-882.08,0.00024657,9]
[390839821,1760176865038,-500.0,0.00024657,9]
[390839822,1760176865062,-882.08,0.00024657,9]
[390839823,1760176865075,-240.72,0.00024657,9]
[390839824,1760176865088,-641.36,0.00024657,9]
[390839825,1760176865097,-240.72,0.00024657,9]
[390839826,1760176865110,-641.36,0.00024657,9]
[390839827,1760176865119,-240.72,0.00024657,9]
[390839828,1760176865135,-641.36,0.00024657,9]
[390839829,1760176865144,-219.39,0.00024657,9]
[390839830,1760176865175,-662.69,0.00024657,9]
[390839831,1760176865204,-882.08,0.00024657,9]
[390839832,1760176865236,-882.08,0.00024657,9]
[390839833,1760176865265,-882.08,0.00024657,9]
[390839834,1760176865294,-882.08,0.00024657,9]
[390839835,1760176865325,-735.91,0.00024657,9]
[390839836,1760176865366,-146.17,0.00024657,9]
[390839837,1760176865394,-500.0,0.00024657,9]
[390839838,1760176865423,-882.08,0.00024657,9]
[390839839,1760176865449,-500.0,0.00024657,9]
[390839840,1760176865478,-882.08,0.00024657,9]
[390839841,1760176865506,-882.08,0.00024657,9]
[390839842,1760176865534,-882.08,0.00024657,9]
[390839843,1760176865578,-882.08,0.00024657,9]
[390839844,1760176865605,-882.08,0.00024657,9]
[390839845,1760176865632,-882.08,0.00024657,9]
[390839846,1760176865659,-882.08,0.00024657,9]
[390839847,1760176865687,-882.17,0.00024657,9]
[390839848,1760176865713,-500.0,0.00024657,2]
[390839849,1760176865753,-500.0,0.00024657,2]
[390839850,1760176865781,-500.0,0.00024657,9]
[390839851,1760176865807,-500.0,0.00024657,2]
[390839852,1760176865835,-500.0,0.00024657,9]
[390839853,1760176865860,-500.0,0.00024657,2]
[390839854,1760176865887,-500.0,0.00024657,9]
[390839855,1760176865914,-500.0,0.00024657,2]
[390839856,1760176865941,-500.0,0.00024657,9]
[390839857,1760176865968,-500.0,0.00024657,2]
[390839858,1760176865996,-497.92273884,0.00024657,9]
[390839859,1760176866104,-4.16452232,0.00024657,9]
[390839860,1760176866140,-500.0,0.00024657,2]
[390839861,1760176866171,-500.0,0.00024657,2]
[390839862,1760176866201,-500.0,0.00024657,9]
[390839863,1760176866231,-500.0,0.00024657,2]
[390839864,1760176866261,-500.0,0.00024657,9]
[390839865,1760176866290,-500.0,0.00024657,2]
[390839866,1760176866320,-500.0,0.00024657,2]
[390839867,1760176866348,-500.0,0.00024657,2]
[390839868,1760176866375,-500.0,0.00024657,2]
[390839869,1760176866404,-491.68095536,0.00024657,2]
[390839870,1760176866652,-8.31904464,0.00024657,2]
[390839871,1760176866680,-500.0,0.00024657,9]
[390839872,1760176866714,-500.0,0.00024657,2]
[390839873,1760176866742,-500.0,0.00024657,2]
[390839874,1760176866770,-500.0,0.00024657,2]
[390839875,1760176866799,-500.0,0.00024657,2]
[390839876,1760176866830,-500.0,0.00024657,2]
[390839877,1760176866859,-500.0,0.00024657,9]
[390839878,1760176866887,-500.0,0.00024657,2]
[390839879,1760176866914,-500.0,0.00024657,9]
[390839880,1760176866942,-483.37191072,0.00024657,9]
[390839881,1760176867085,-16.62808928,0.00024657,9]
[390839882,1760176867114,-500.0,0.00024657,9]
[390839883,1760176867147,-500.0,0.00024657,2]
[390839884,1760176867176,-500.0,0.00024657,9]
[390839885,1760176867203,-500.0,0.00024657,9]
[390839886,1760176867233,-500.0,0.00024657,2]
[390839887,1760176867260,-500.0,0.00024657,9]
[390839888,1760176867288,-500.0,0.00024657,9]
[390839889,1760176867319,-209.98582944,0.00024657,2]
[390839890,1760176867347,-500.0,0.00024657,9]
[390839891,1760176867375,-178.82,0.00024657,9]
[390839892,1760176867403,-500.0,0.00024657,9]
[390839893,1760176868502,-328.6989174,0.00024657,9]
[390839894,1760176868516,-171.3010826,0.00024657,9]
[390839895,1760176868525,-7.5189174,0.00024657,9]
[390839896,1760176868542,-492.4810826,0.00024657,9]
[390839897,1760176868551,-7.5189174,0.00024657,9]
[390839898,1760176868564,-189.14216256,0.00024657,9]
[390839899,1760176882070,403.89413146,0.000245,2]
[390839900,1760176883112,5000.0,0.00024657,2]
[390839901,1760176899679,-440.9,0.00020016,2]
[390839902,1760176929642,-2000.0,0.00021617,10]
[390839903,1760176941824,-2000.0,0.00021617,10]
[390839904,1760176946056,-1000.0,0.00021617,10]
[390839905,1760176946079,-881.8,0.00021835,2]
[390839906,1760176948035,-153.0,0.00021918,2]
[390839907,1760176948063,-153.0,0.00021918,2]
[390839908,1760176948393,5000.0,0.00021617,2]
[390839909,1760176965910,424.06,0.00020203,2]
[390839910,1760176966345,848.13,0.00022039,2]
[390839911,1760176970266,5000.0,0.00023555,2]
[390839912,1760176981721,-765.64767451,0.00023555,2]
[390839913,1760176981749,-1272.19,0.00023876,2]
[390839914,1760176981778,-166.602,0.00024164,6]
[390839915,1760176981809,-500.0,0.000245,3]
[390839916,1760176981836,-205.10522659,0.00024547,2]
[390839917,1760176981865,-1259.21610593,0.00024548,2]
[390839918,1760176981891,-174.67994455,0.00024557,2]
[390839919,1760176981922,-113.12809684,0.00024656,2]
[390839920,1760176982128,-1086.87190316,0.00024656,2]
[390839921,1760176982159,-303.33892004,0.00024657,9]
[390839922,1760176982213,-500.0,0.00024657,9]
[390839923,1760176982261,-500.0,0.00024657,9]
[390839924,1760176982288,-487.85,0.00024657,9]
[390839925,1760176982315,-500.0,0.00024657,9]
[390839926,1760176982346,-500.0,0.00024657,9]
[390839927,1760176982375,-500.0,0.00024657,9]
[390839928,1760176982402,-500.0,0.00024657,9]
[390839929,1760176982470,-500.0,0.00024657,9]
[390839930,1760176982498,-500.0,0.00024657,9]
[390839931,1760176982526,-250.25433332,0.00024657,9]
[390839932,1760176982553,-500.0,0.00024657,9]
[390839933,1760176982581,-500.0,0.00024657,9]
[390839934,1760176982609,-500.54,0.00024657,9]
[390839935,1760176982638,-500.0,0.00024657,9]
[390839936,1760176982665,-500.0,0.00024657,9]
[390839937,1760176982705,-500.0,0.00024657,9]
[390839938,1760176982733,-500.0,0.00024657,9]
[390839939,1760176982882,-500.0,0.00024657,9]
[390839940,1760176982910,-500.0,0.00024657,9]
[390839941,1760176982938,-500.0,0.00024657,9]
[390839942,1760176982967,-500.0,0.00024657,9]
[390839943,1760176982994,-500.0,0.00024657,9]
[390839944,1760176983021,-500.0,0.00024657,9]
[390839945,1760176983049,-500.0,0.00024657,9]
[390839946,1760176983075,-500.0,0.00024657,9]
[390839947,1760176983101,-316.79477592,0.00024657,9]
[390839948,1760176983130,-500.0,0.00024657,9]
[390839949,1760176983157,-158.15653956,0.00024657,9]
[390839950,1760176983524,-50.10736904,0.00024657,9]
[390839951,1760176983552,-500.0,0.00024657,9]
[390839952,1760176983580,-500.0,0.00024657,9]
[390839953,1760176983607,-500.0,0.00024657,9]
[390839954,1760176983635,-500.0,0.00024657,9]
[390839955,1760176983666,-500.0,0.00024657,9]
[390839956,1760176983694,-500.0,0.00024657,9]
[390839957,1760176983722,-500.0,0.00024657,9]
[390839958,1760176983750,-500.0,0.00024657,9]
[390839959,1760176983779,-500.0,0.00024657,9]
[390839960,1760176983810,-399.79526192,0.00024657,9]
[390839961,1760176984018,-177.18401222,0.00024557,2]
[390839962,1760176984046,-100.20473808,0.00024657,9]
[390839963,1760176984075,-500.0,0.00024657,9]
[390839964,1760176984103,-558.43909176,0.00024657,9]
[390839965,1760176984130,-500.0,0.00024657,9]
[390839966,1760176984157,-500.0,0.00024657,9]
[390839967,1760176984191,-500.0,0.00024657,9]
[390839968,1760176984219,-500.0,0.00024657,9]
[390839969,1760176984248,-500.0,0.00024657,9]
[390839970,1760176984275,-500.0,0.00024657,9]
[390839971,1760176984303,-500.0,0.00024657,9]
[390839972,1760176984478,-500.0,0.00024657,9]
[390839973,1760176984505,-500.0,0.00024657,9]
[390839974,1760176984532,-500.0,0.00024657,9]
[390839975,1760176984562,-500.0,0.00024657,9]
[390839976,1760176984592,-576.65,0.00024657,9]
[390839977,1760176984622,-500.0,0.00024657,9]
[390839978,1760176984655,-500.0,0.00024657,9]
[390839979,1760176984699,-500.0,0.00024657,9]
[390839980,1760176984735,-500.0,0.00024657,9]
[390839981,1760176984774,-346.71,0.00024657,9]
[390839982,1760176985054,-300.0,0.00024656,2]
[390839983,1760176985093,-153.29,0.00024657,9]
[390839984,1760176985127,-500.0,0.00024657,9]
[390839985,1760176985162,-500.0,0.00024657,9]